fUST/lending_fUST_20240629
["ID","MTS","AMOUNT","RATE_DAILY","PERIOD"]
[330606766,1719613078492,2825.49865465,0.00015,2]
[330606768,1719613158503,1097.42935149,0.00014999,2]
[330606772,1719613548957,164.274823,0.00014904,2]
[330606773,1719613747259,-207.82493266,0.00016255,2]
[330606774,1719613747280,-455.8144287,0.00017874,2]
[330606775,1719613747301,-250.0,0.00018038,2]
[330606776,1719613747323,-177.232404,0.00018088,2]
[330606777,1719613747343,-300.0,0.00018289,2]
[330606778,1719613747364,-24880.0,0.0001829,2]
[330606779,1719613747384,-195.98306936,0.00018798,2]
[330606780,1719613747404,-150.0,0.000189,2]
[330606781,1719613747424,-197.06317294,0.00019039,2]
[330606782,1719613747446,-169.956582,0.00019178,2]
[330606783,1719613747465,-5267.47849281,0.00019482,2]
[330606784,1719613747486,-500.0,0.00019979,2]
[330606785,1719613747506,-500.0,0.00019979,2]
[330606786,1719613747540,-450.0,0.00019979,2]
[330606787,1719613747562,-500.0,0.00019979,2]
[330606788,1719613747583,-500.0,0.00019979,2]
[330606789,1719613747606,-230.19558435,0.00019979,2]
[330606790,1719613747627,-19651.10827949,0.0001998,7]
[330606791,1719613747649,-177590.30005591,0.0001998,2]
[330606792,1719613753160,-19887.95175,0.0001998,2]
[330606793,1719613765221,-150.0,0.000189,2]
[330606794,1719613765244,-337645.15038509,0.0001998,2]
[330606795,1719613765266,-19125.47117491,0.0002,2]
[330606796,1719613771138,-80874.52882509,0.0002,2]
[330606797,1719613771159,-293.04302917,0.0002,2]
[330606798,1719613771181,-30000.0,0.00020102,2]
[330606799,1719613771201,-525.58556234,0.00021,2]
[330606800,1719613771225,-160.714286,0.00021096,2]
[330606801,1719613771248,-338.329946,0.00021096,2]
[330606802,1719613771270,-712.95,0.00021917,4]
[330606803,1719613771291,-712.95,0.00021917,4]
[330606804,1719613771312,-712.95,0.00021917,4]
[330606805,1719613771333,-712.95,0.00021917,4]
[330606806,1719613771354,-712.95,0.00021917,4]
[330606807,1719613771375,-712.95,0.00021917,4]
[330606808,1719613771396,-712.95,0.00021917,4]
[330606809,1719613771417,-712.95,0.00021917,4]
[330606810,1719613771437,-115.1532614,0.00021917,4]
[330606811,1719613772123,-597.7967386,0.00021917,4]
[330606812,1719613772146,-712.95,0.00021917,4]
[330606813,1719613772168,-712.95,0.00021917,4]
[330606814,1719613772188,-712.95,0.00021917,4]
[330606815,1719613772210,-712.95,0.00021917,4]
[330606816,1719613772230,-712.95,0.00021917,4]
[330606817,1719613772251,-712.95,0.00021917,4]
[330606818,1719613772274,-712.95,0.00021917,4]
[330606819,1719613772295,-712.95,0.00021917,4]
[330606820,1719613772316,-712.95,0.00021917,4]
[330606821,1719613772336,-500.0,0.00021917,4]
[330606822,1719613772355,-500.0,0.00021917,4]
[330606823,1719613772374,-500.0,0.00021917,2]
[330606824,1719613772392,-500.0,0.00021917,4]
[330606825,1719613772411,-500.0,0.00021917,4]
[330606826,1719613772430,-500.0,0.00021917,4]
[330606827,1719613772450,-500.0,0.00021917,4]
[330606828,1719613772469,-500.0,0.00021917,4]
[330606829,1719613772489,-500.0,0.00021917,4]
[330606830,1719613772508,-500.0,0.00021917,4]
[330606831,1719613772532,-500.0,0.00021917,4]
[330606832,1719613772551,-500.0,0.00021917,4]
[330606833,1719613772571,-500.0,0.00021917,4]
[330606834,1719613772590,-500.0,0.00021917,4]
[330606835,1719613772612,-500.0,0.00021917,4]
[330606836,1719613772631,-500.0,0.00021917,4]
[330606837,1719613772651,-500.0,0.00021917,4]
[330606838,1719613772671,-500.0,0.00021917,4]
[330606839,1719613772691,-500.0,0.00021917,4]
[330606840,1719613772710,-500.0,0.00021917,4]
[330606841,1719613772728,-500.0,0.00021917,4]
[330606842,1719613772747,-500.0,0.00021917,4]
[330606843,1719613772766,-500.0,0.00021917,4]
[330606844,1719613772785,-500.0,0.00021917,4]
[330606845,1719613772805,-166.666666,0.00021918,2]
[330606846,1719613772825,-160.02818343,0.00022,2]
[330606847,1719613772845,-878.80758321,0.0002217,2]
[330606848,1719613772863,-500.0,0.00022191,4]
[330606849,1719613772884,-500.0,0.00022191,2]
[330606850,1719613772903,-500.0,0.00022191,4]
[330606851,1719613772921,-500.0,0.00022191,4]
[330606852,1719613772942,-500.0,0.00022191,4]
[330606853,1719613772961,-500.0,0.00022191,4]
[330606854,1719613772979,-500.0,0.00022191,4]
[330606855,1719613772999,-500.0,0.00022191,4]
[330606856,1719613773018,-500.0,0.00022191,4]
[330606857,1719613773037,-500.0,0.00022191,4]
[330606858,1719613773056,-500.0,0.00022191,4]
[330606859,1719613773075,-500.0,0.00022191,4]
[330606860,1719613773094,-500.0,0.00022191,4]
[330606861,1719613773111,-500.0,0.00022191,4]
[330606862,1719613773131,-500.0,0.00022191,4]
[330606863,1719613773150,-500.0,0.00022191,4]
[330606864,1719613773169,-500.0,0.00022191,4]
[330606865,1719613773188,-500.0,0.00022191,4]
[330606866,1719613773207,-500.0,0.00022191,4]
[330606867,1719613773225,-500.0,0.00022191,4]
[330606868,1719613773243,-155.59,0.00022191,4]
[330606869,1719613773261,-500.0,0.00022191,4]
[330606870,1719613773279,-500.0,0.00022191,4]
[330606871,1719613773297,-166.666666,0.00022431,2]
[330606872,1719613773316,-500.0,0.00022465,4]
[330606873,1719613773337,-274.5,0.00022465,2]
[330606874,1719613773355,-646.45,0.00022465,4]
[330606875,1719613773373,-500.0,0.00022465,4]
[330606876,1719613773391,-252.86,0.00022465,4]
[330606877,1719613773409,-221.39,0.00022465,4]
[330606878,1719613773427,-500.0,0.00022465,4]
[330606879,1719613773448,-500.0,0.00022465,4]
[330606880,1719613773466,-500.0,0.00022465,4]
[330606881,1719613773484,-561.25,0.00022465,4]
[330606882,1719613773505,-500.0,0.00022465,4]
[330606883,1719613773528,-500.0,0.00022465,4]
[330606884,1719613773549,-636.48,0.00022465,4]
[330606885,1719613773570,-500.0,0.00022465,4]
[330606886,1719613773590,-500.0,0.00022465,4]
[330606887,1719613773609,-445.87,0.00022465,4]
[330606888,1719613773629,-602.1,0.00022465,4]
[330606889,1719613773648,-500.0,0.00022465,4]
[330606890,1719613773668,-391.86,0.00022465,4]
[330606891,1719613773686,-472.43,0.00022465,4]
[330606892,1719613773706,-584.44,0.00022465,4]
[330606893,1719613773724,-311.19,0.00022739,4]
[330606894,1719613773743,-500.0,0.00022739,4]
[330606895,1719613773761,-416.95,0.00022739,4]
[330606896,1719613773780,-596.46,0.00022739,4]
[330606897,1719613773798,-500.0,0.00022739,4]
[330606898,1719613773818,-500.0,0.00022739,4]
[330606899,1719613773837,-500.0,0.00022739,4]
[330606900,1719613773857,-500.0,0.00022739,4]
[330606901,1719613773880,-500.0,0.00022739,4]
[330606902,1719613774023,-500.0,0.00022739,4]
[330606903,1719613774044,-166.666666,0.00022944,2]
[330606904,1719613774063,-220.0592196,0.00023,2]
[330606905,1719613774082,-618.52,0.00023013,4]
[330606906,1719613774101,-500.0,0.00023013,4]
[330606907,1719613774120,-500.0,0.00023013,4]
[330606908,1719613774139,-500.0,0.00023013,4]
[330606909,1719613774157,-254.28,0.00023013,4]
[330606910,1719613774176,-606.56,0.00023013,4]
[330606911,1719613774195,-500.0,0.00023013,4]
[330606912,1719613774261,2077.66935878,0.0002,7]
[330606968,1719613833182,-302.18198335,0.00018065,2]
[330606969,1719613833191,-225.44709256,0.0002,2]
[330606970,1719613833201,-259.26,0.00021917,4]
[330606971,1719613833210,-415.15,0.00023287,4]
[330606972,1719613833219,-500.0,0.00023287,4]
[330606973,1719613833228,-605.39,0.00023287,4]
[330606974,1719613833238,-166.666666,0.00023456,2]
[330606975,1719613833247,-430.95,0.00023561,4]
[330606976,1719613833257,-166.666666,0.00023969,2]
[330606977,1719613833266,-6071.46629594,0.00024,2]
[330606978,1719613833275,-525.46798099,0.00024242,2]
[330606979,1719613833284,-878.80758321,0.00024242,2]
[330606980,1719613833293,-166.666666,0.00024482,2]
[330606981,1719613833303,-380.0,0.00024658,2]
[330606982,1719613833312,-154.83742071,0.00025,2]
[330606983,1719613833321,-772.0,0.00025673,2]
[330606984,1719613833331,-4483.35233216,0.00025999,2]
[330606985,1719613833340,-4171.21863627,0.00025999,2]
[330606986,1719613833350,-762.99526937,0.00025999,2]
[330606987,1719613833359,-188.94282529,0.00025999,2]
[330606988,1719613833369,-151.31843755,0.00027,5]
[330606989,1719613833378,-151.33355125,0.00027,5]
[330606990,1719613833388,-338.329946,0.00027195,2]
[330606991,1719613833397,-449.53187903,0.000275,30]
[330606992,1719613833407,-151.31843755,0.0002754,5]
[330606993,1719613833416,-151.33355125,0.0002754,5]
[330606994,1719613833425,-268.04350888,0.00028,2]
[330606995,1719613833435,-151.31843755,0.0002808,5]
[330606996,1719613833444,-151.33355125,0.0002808,5]
[330606997,1719613833454,-151.31843755,0.0002862,5]
[330606998,1719613833463,-151.33355125,0.0002862,5]
[330606999,1719613833473,-153.0,0.00029147,2]
[330607000,1719613833482,-153.0,0.00029147,2]
[330607001,1719613833491,-151.31843755,0.0002916,5]
[330607002,1719613833500,-151.33355125,0.0002916,5]
[330607003,1719613833510,-151.31843755,0.000297,5]
[330607004,1719613833519,-151.33355125,0.000297,5]
[330607005,1719613833528,-196.0,0.0003,2]
[330607006,1719613833541,-160.714286,0.00030011,2]
[330607007,1719613833550,-718.97363515,0.00031,4]
[330607008,1719613833560,-164.274823,0.00032344,2]
[330607009,1719613833569,-150.0,0.00032564,2]
[330607010,1719613833578,-150.0,0.00032564,2]
[330607011,1719613833587,-200.0,0.00032564,2]
[330607012,1719613833596,-530.74411189,0.00033,30]
[330607013,1719613833605,-338.329946,0.00033295,2]
[330607014,1719613833615,-1726.66807234,0.0003456,4]
[330607015,1719613833624,-235.09987545,0.00034574,4]
[330607016,1719613833633,-154.96757446,0.00034623,4]
[330607017,1719613833643,-825.92070736,0.0003463,4]
[330607018,1719613833651,-154.94576898,0.00034999,4]
[330607019,1719613833660,-202.30993732,0.00035259,4]
[330607020,1719613833669,-242.84775224,0.00035615,2]
[330607021,1719613833678,-154.83742071,0.00035615,4]
[330607022,1719613833687,-712.95,0.00035616,4]
[330607023,1719613833696,-6010.72411706,0.00035616,7]
[330607024,1719613833705,-196.0,0.00037588,2]
[330607025,1719613833713,-160.714286,0.00038925,2]
[330607026,1719613833722,-338.329946,0.00039394,2]
[330607027,1719613833731,-4057.51102401,0.0003999,4]
[330607028,1719613833740,-192.67136426,0.00041095,4]
[330607029,1719613833749,-203.05577269,0.00041095,2]
[330607030,1719613833758,-3692.40008243,0.00041095,14]
[330607031,1719613833767,-999.0,0.00041095,120]
[330607032,1719613833775,-999.0,0.00041369,120]
[330607033,1719613833784,-999.0,0.00041643,120]
[330607034,1719613833793,-999.0,0.00041917,120]
[330607035,1719613833802,-150.81901718,0.00041991,2]
[330607036,1719613833811,-1005.61518358,0.00042191,120]
[330607037,1719613833820,-1967.45654607,0.000425,30]
[330607038,1719613833829,-301.63803436,0.00042697,4]
[330607039,1719613833838,-712.95,0.00042999,120]
[330607040,1719613833848,-712.95,0.00042999,120]
[330607041,1719613833857,-712.95,0.00042999,120]
[330607042,1719613833868,-218.91211354,0.00042999,120]
[330607150,1719614234373,163.831964,0.00014904,2]
[330607156,1719614559643,525.01487892,0.00014999,2]
[330607160,1719614702188,155.06488944,0.00014999,2]
[330607161,1719614740143,-196.91036932,0.00019039,2]
[330607162,1719614740167,-181.423834,0.00020154,2]
[330607163,1719614740188,-584.1164492,0.0002078,2]
[330607167,1719614788305,163.831964,0.00014904,2]
[330607168,1719614828135,-762.99526937,0.0002078,2]
[330607169,1719614828157,-3855.8627662,0.0002078,2]
[330607170,1719614828179,-150.0,0.00020913,2]
[330607171,1719614828201,-268.898672,0.00021096,2]
[330607172,1719614828225,-270.663956,0.00021096,2]
[330607173,1719614828247,-555.14,0.00021917,4]
[330607174,1719614828272,-508.89038591,0.00021917,4]
[330607175,1719614828296,-500.0,0.00021917,4]
[330607176,1719614828317,-500.0,0.00021917,4]
[330607177,1719614828339,-500.0,0.00021917,4]
[330607178,1719614828359,-500.0,0.00021917,4]
[330607179,1719614828381,-502.01806864,0.00021917,4]
[330607180,1719614828402,-500.0,0.00021917,4]
[330607181,1719614828425,-500.0,0.00021917,4]
[330607182,1719614828446,-500.0,0.00021917,4]
[330607183,1719614828467,-500.0,0.00021917,4]
[330607184,1719614828491,-500.0,0.00021917,4]
[330607185,1719614828514,-500.0,0.00021917,4]
[330607186,1719614828536,-500.0,0.00021917,4]
[330607187,1719614828558,-500.0,0.00021917,4]
[330607188,1719614828580,-500.0,0.00021917,4]
[330607189,1719614828602,-500.0,0.00021917,4]
[330607190,1719614828623,-500.0,0.00021917,4]
[330607191,1719614828645,-500.0,0.00021917,4]
[330607192,1719614828680,-500.0,0.00021917,4]
[330607193,1719614828707,-506.1980373,0.00021917,4]
[330607194,1719614828734,-549.74919985,0.00021917,4]
[330607195,1719614828757,-500.0,0.00021917,4]
[330607196,1719614828780,-500.0,0.00021917,4]
[330607197,1719614828987,-619.46,0.00021917,4]
[330607198,1719614829010,-500.0,0.00021917,4]
[330607199,1719614829030,-598.89,0.00021917,4]
[330607200,1719614829050,-504.58832158,0.00021917,4]
[330607201,1719614829071,-234.59707315,0.00021917,4]
[330607202,1719614843106,-225.44709256,0.0002078,2]
[330607203,1719614843126,-397.54292685,0.00021917,4]
[330607204,1719614843146,-500.0,0.00021917,4]
[330607205,1719614843167,-644.23,0.00021917,4]
[330607206,1719614843186,-500.0,0.00021917,4]
[330607207,1719614843206,-507.94764449,0.00021917,4]
[330607208,1719614843228,-500.0,0.00021917,4]
[330607209,1719614843248,-500.0,0.00021917,4]
[330607210,1719614843268,-500.0,0.00021917,4]
[330607211,1719614843292,-1693.86,0.00021917,4]
[330607212,1719614843312,-597.64,0.00021917,4]
[330607213,1719614843333,-500.0,0.00021917,4]
[330607214,1719614843353,-500.0,0.00021917,4]
[330607215,1719614843373,-500.0,0.00021917,4]
[330607216,1719614843393,-526.73,0.00021917,4]
[330607217,1719614843412,-819.05,0.00021917,4]
[330607218,1719614843432,-561.23,0.00021917,4]
[330607219,1719614843452,-2019.52,0.00021917,4]
[330607220,1719614843473,-500.0,0.00021917,4]
[330607221,1719614843494,-500.0,0.00021917,4]
[330607222,1719614843513,-500.0,0.00021917,4]
[330607223,1719614843535,-4670.87,0.00021917,4]
[330607224,1719614843554,-552.34,0.00021917,4]
[330607225,1719614843574,-639.4322931,0.00021917,4]
[330607226,1719614843594,-500.0,0.00021917,4]
[330607227,1719614843614,-500.0,0.00021917,4]
[330607228,1719614843634,-166.666666,0.00021918,2]
[330607229,1719614843653,-500.0,0.0002219,4]
[330607230,1719614843676,-830.71,0.0002219,4]
[330607231,1719614843696,-3489.62,0.0002219,4]
[330607232,1719614843717,-626.89,0.0002219,4]
[330607233,1719614843738,-500.0,0.0002219,4]
[330607234,1719614843758,-573.24,0.0002219,4]
[330607235,1719614843778,-398.0,0.00022191,4]
[330607236,1719614843798,-245.75,0.00022191,4]
[330607237,1719614843818,-517.0,0.00022191,4]
[330607238,1719614843837,-224.43,0.00022191,4]
[330607239,1719614843861,-498.0,0.00022191,4]
[330607240,1719614843883,-261.97,0.00022191,4]
[330607241,1719614843903,-411.28,0.00022191,4]
[330607242,1719614843926,-213.1,0.00022191,4]
[330607243,1719614843946,-500.0,0.00022191,4]
[330607244,1719614843966,-500.0,0.00022191,4]
[330607245,1719614843986,-500.0,0.00022191,4]
[330607246,1719614844006,-500.0,0.00022191,4]
[330607247,1719614844027,-500.0,0.00022191,4]
[330607248,1719614844048,-560.47,0.00022191,4]
[330607249,1719614844069,-634.77,0.00022191,4]
[330607250,1719614844091,-547.09,0.00022191,4]
[330607251,1719614844113,-500.0,0.00022191,4]
[330607252,1719614844134,-400.52,0.00022191,4]
[330607253,1719614844155,-500.0,0.00022191,4]
[330607254,1719614844175,-225.68,0.00022191,4]
[330607255,1719614844197,-556.09,0.00022191,4]
[330607256,1719614844218,-378.55541198,0.00022191,4]
[330607257,1719614844238,-218.41,0.00022191,4]
[330607258,1719614844259,-500.0,0.00022191,4]
[330607259,1719614844283,-464.22472414,0.00022191,4]
[330607260,1719614844306,-1693.86,0.00022191,4]
[330607261,1719614844328,-500.0,0.00022191,4]
[330607262,1719614844350,-500.0,0.00022191,4]
[330607263,1719614844370,-419.74,0.00022191,4]
[330607264,1719614844391,-819.05,0.00022191,4]
[330607265,1719614844413,-2019.52,0.00022191,4]
[330607266,1719614844435,-286.07,0.00022191,4]
[330607267,1719614844456,-205.63,0.00022191,4]
[330607268,1719614844477,-463.94,0.00022191,4]
[330607269,1719614844498,-4670.87,0.00022191,4]
[330607270,1719614844519,-248.7,0.00022191,4]
[330607271,1719614844538,-500.0,0.00022191,4]
[330607272,1719614844559,-878.80758321,0.00022288,2]
[330607273,1719614844579,-160.02818343,0.00022289,2]
[330607274,1719614844599,-166.666666,0.00022431,2]
[330607275,1719614844620,-500.0,0.00022463,2]
[330607276,1719614844641,-169.05867531,0.00022463,2]
[330607277,1719614844661,-275.03,0.00022464,4]
[330607278,1719614844681,-830.71,0.00022464,4]
[330607279,1719614844701,-3489.62,0.00022464,4]
[330607280,1719614844723,-269.17,0.00022464,4]
[330607281,1719614844746,-573.24,0.00022464,4]
[330607282,1719614844767,-500.0,0.00022465,4]
[330607283,1719614844787,-500.0,0.00022465,4]
[330607284,1719614844807,-500.0,0.00022465,4]
[330607285,1719614844830,-500.0,0.00022465,4]
[330607286,1719614844854,-500.0,0.00022465,4]
[330607287,1719614844875,-500.0,0.00022465,4]
[330607288,1719614844897,-500.0,0.00022465,4]
[330607289,1719614844916,-500.0,0.00022465,4]
[330607290,1719614844941,-1693.86,0.00022465,4]
[330607291,1719614844960,-500.0,0.00022465,4]
[330607292,1719614844982,-500.0,0.00022465,4]
[330607293,1719614845004,-819.05,0.00022465,4]
[330607294,1719614845024,-2019.52,0.00022465,4]
[330607295,1719614845043,-4670.87,0.00022465,4]
[330607296,1719614845063,-500.0,0.00022465,4]
[330607297,1719614845084,-178.03605631,0.00022628,2]
[330607298,1719614845106,-131766.736583,0.00022728,2]
[330607299,1719614845125,-830.71,0.00022738,4]
[330607300,1719614845146,-3489.62,0.00022738,4]
[330607301,1719614845166,-573.24,0.00022738,4]
[330607302,1719614845187,-500.0,0.00022739,4]
[330607303,1719614845206,-500.0,0.00022739,4]
[330607304,1719614845229,-500.0,0.00022739,4]
[330607305,1719614845252,-386.52117999,0.00022739,4]
[330607306,1719614845274,-500.0,0.00022739,4]
[330607307,1719614845296,-500.0,0.00022739,4]
[330607308,1719614845316,-500.0,0.00022739,4]
[330607309,1719614845336,-500.0,0.00022739,4]
[330607310,1719614845358,-1693.86,0.00022739,4]
[330607311,1719614845379,-500.0,0.00022739,4]
[330607312,1719614845398,-819.05,0.00022739,4]
[330607313,1719614845419,-2019.52,0.00022739,4]
[330607314,1719614845440,-4670.87,0.00022739,4]
[330607315,1719614845460,-550.06989477,0.00022739,4]
[330607316,1719614845484,-166.666666,0.00022944,2]
[330607317,1719614845504,-830.71,0.00023012,4]
[330607318,1719614845526,-3489.62,0.00023012,4]
[330607319,1719614845548,-573.24,0.00023012,4]
[330607320,1719614845569,-500.0,0.00023013,4]
[330607321,1719614845590,-500.0,0.00023013,4]
[330607322,1719614845613,-500.0,0.00023013,4]
[330607323,1719614845739,-500.0,0.00023013,4]
[330607324,1719614845760,-500.0,0.00023013,4]
[330607325,1719614845781,-500.0,0.00023013,4]
[330607326,1719614845802,-500.0,0.00023013,4]
[330607327,1719614845822,-1693.86,0.00023013,4]
[330607328,1719614845845,-490.99,0.00023013,4]
[330607329,1719614845865,-819.05,0.00023013,4]
[330607330,1719614845887,-2019.52,0.00023013,4]
[330607331,1719614845908,-4670.87,0.00023013,4]
[330607332,1719614845931,-96421.07213795,0.00023277,2]
[330607333,1719614849101,-1242.7,0.00021917,4]
[330607334,1719614849122,-510.7943544,0.00021917,4]
[330607335,1719614849144,-1242.7,0.00022191,4]
[330607336,1719614849165,-1242.7,0.00022465,4]
[330607337,1719614849187,-1242.7,0.00022739,4]
[330607338,1719614849207,-1242.7,0.00023013,4]
[330607339,1719614849231,-35345.66444505,0.00023277,2]
[330607340,1719614849252,-830.71,0.00023286,4]
[330607341,1719614849275,-3489.62,0.00023286,4]
[330607342,1719614849296,-573.24,0.00023286,4]
[330607343,1719614849319,-500.0,0.00023287,4]
[330607344,1719614849341,-500.0,0.00023287,4]
[330607345,1719614849361,-500.0,0.00023287,4]
[330607346,1719614849381,-500.0,0.00023287,4]
[330607347,1719614849402,-1693.86,0.00023287,4]
[330607348,1719614849422,-819.05,0.00023287,4]
[330607349,1719614849442,-2206.14,0.00023287,4]
[330607350,1719614849462,-2019.52,0.00023287,4]
[330607351,1719614849485,-4670.87,0.00023287,4]
[330607352,1719614849505,-1242.7,0.00023287,4]
[330607353,1719614849526,-178.03605631,0.00023356,2]
[330607354,1719614849548,-19080.82396933,0.00023445,2]
[330607357,1719614965104,-500.0,0.00021917,4]
[330607358,1719614965128,-166.666666,0.00021918,2]
[330607359,1719614965151,-500.0,0.0002219,4]
[330607360,1719614965173,-500.0,0.00022191,4]
[330607361,1719614965195,-160.02818343,0.00022278,2]
[330607362,1719614965218,-166.666666,0.00022459,2]
[330607363,1719614965240,-500.0,0.00022464,4]
[330607364,1719614965263,-500.0,0.00022465,4]
[330607365,1719614965286,-500.0,0.00022738,4]
[330607366,1719614965310,-582.55610693,0.00022739,4]
[330607367,1719614981280,685.86317764,0.00021917,4]
[330607404,1719615033213,-828.77682236,0.00021917,4]
[330607405,1719615033223,-762.99526937,0.00021917,2]
[330607406,1719615033233,-93.97790827,0.00021917,2]
[330607427,1719615038189,-2213.36221828,0.00021917,2]
[330607428,1719615038199,-2207.03130743,0.00021917,2]
[330607429,1719615038390,-1964.18732884,0.00021917,2]
[330607430,1719615038400,-225.44709256,0.00021917,2]
[330607431,1719615038410,-500.0,0.0002219,4]
[330607432,1719615038421,-1514.64,0.00022191,4]
[330607433,1719615038431,-500.0,0.00022464,4]
[330607434,1719615038441,-1514.64,0.00022465,4]
[330607435,1719615038451,-500.0,0.00022738,4]
[330607436,1719615038461,-1514.64,0.00022739,4]
[330607437,1719615038470,-42.62018963,0.00023001,2]
[330607462,1719615040945,-124.04647637,0.00023001,2]
[330607463,1719615040955,-500.0,0.00023012,4]
[330607464,1719615040965,-500.0,0.00023012,4]
[330607465,1719615040974,-1514.64,0.00023013,4]
[330607466,1719615040985,-500.0,0.00023286,4]
[330607467,1719615040994,-500.0,0.00023286,4]
[330607468,1719615041004,-1514.64,0.00023287,4]
[330607469,1719615041014,-261.61636215,0.00023445,2]
[330607470,1719615041023,-218.240125,0.0002354,7]
[330607471,1719615041032,-151.0,0.0002354,7]
[330607472,1719615041042,-151.0,0.0002354,7]
[330607473,1719615041051,-151.0,0.0002354,7]
[330607474,1719615041060,-151.0,0.0002354,7]
[330607475,1719615041069,-151.0,0.0002354,7]
[330607476,1719615041080,-151.0,0.0002354,7]
[330607477,1719615041089,-151.0,0.0002354,7]
[330607478,1719615041099,-151.0,0.0002354,7]
[330607479,1719615041108,-151.0,0.0002354,7]
[330607480,1719615041118,-151.0,0.0002354,7]
[330607481,1719615041128,-151.0,0.0002354,7]
[330607482,1719615041137,-166.666666,0.00023542,2]
[330607483,1719615041147,-585.273327,0.0002355,7]
[330607484,1719615041156,-151.0,0.0002355,7]
[330607485,1719615041166,-820.27704348,0.0002356,4]
[330607524,1719615047508,-2114.21,0.00021917,4]
[330607525,1719615047517,-2114.21,0.00022191,4]
[330607526,1719615047527,-2114.21,0.00022465,4]
[330607527,1719615047536,-2114.21,0.00022739,4]
[330607528,1719615047545,-2114.21,0.00023013,4]
[330607529,1719615047554,-10.43295652,0.0002356,4]
[330607530,1719615047563,-3489.62,0.0002356,4]
[330607531,1719615047572,-573.24,0.0002356,4]
[330607532,1719615047581,-500.0,0.0002356,4]
[330607533,1719615047590,-500.0,0.0002356,4]
[330607534,1719615047599,-492.69,0.00023561,4]
[330607535,1719615047608,-641.98359053,0.00023561,4]
[330607536,1719615101187,-500.0,0.00021917,4]
[330607537,1719615101221,-500.0,0.0002219,4]
[330607538,1719615101251,-500.0,0.00022191,4]
[330607539,1719615101283,-500.0,0.00022465,4]
[330607540,1719615101315,-500.0,0.00022568,4]
[330607541,1719615101347,-500.0,0.00022568,4]
[330607542,1719615101379,-500.0,0.00022568,4]
[330607543,1719615101411,-500.0,0.00022568,4]
[330607544,1719615101450,-500.0,0.00022727,4]
[330607545,1719615101481,-500.0,0.00022727,4]
[330607546,1719615101512,-500.0,0.00022727,4]
[330607547,1719615101545,-500.0,0.00022738,4]
[330607548,1719615101576,-500.0,0.00022739,4]
[330607549,1719615101609,-243.52577537,0.00022941,4]
[330607550,1719615101819,-339.94844926,0.00023013,4]
[330607553,1719615354870,163.267958,0.00014904,2]
[330607561,1719615646663,568.62095843,0.00018065,30]
[330607562,1719615660207,10753.0568777,0.00014998,2]
[330607563,1719615679947,4909.32011654,0.00015,2]
[330607565,1719615846199,2084.99073344,0.00015,2]
[330607566,1719615891484,163.267958,0.00014904,2]
[330607567,1719615896773,159.35965211,0.00014999,2]
[330607569,1719615957163,-183.70634525,0.00021096,2]
[330607572,1719616171162,-491.33508365,0.00021095,2]
[330607573,1719616171183,-184.24739475,0.00021096,2]
[330607574,1719616171203,-257.130758,0.00021096,2]
[330607575,1719616171222,-4171.21863627,0.00021096,2]